bitfinex/quotes_SOLUSD_20240811
["timestamp","ask_amount","ask_price","bid_price","bid_amount"]
[1723368157074,33.4045,157.91,157.79,73.76879308]
[1723368157673,6.4045,157.91,157.82,0.12549]
[1723368157874,33.4045,157.91,157.82,45.37647]
[1723368158082,33.4045,157.91,157.82,0.12549]
[1723368158283,27.0,157.87,157.7,45.377748]
[1723368158576,27.0,157.91,157.78,27.0]
[1723368158745,27.0,157.91,157.79,1.26684656]
[1723368158947,27.0,157.89,157.78,27.0]
[1723368159181,27.0,157.87,157.76,27.0]
[1723368159376,27.0,157.87,157.75,1.26703997]
[1723368160165,6.4045,157.86,157.75,1.26703997]
[1723368160369,27.0,157.81,157.69,27.0]
[1723368160569,27.0,157.81,157.7,1.26757385]
[1723368160988,27.0,157.83,157.71,27.0]
[1723368161255,27.0,157.83,157.71,28.26747763]
[1723368162286,27.0,157.81,157.69,27.0]
[1723368162475,0.97439657,157.8,157.67,27.0]
[1723368162683,27.0,157.78,157.67,27.0]
[1723368162863,27.0,157.78,157.68,1.26784705]
[1723368163058,27.0,157.78,157.67,27.0]
[1723368163260,27.0,157.76,157.65,27.0]
[1723368163674,0.25098,157.83,157.63,0.382239]
[1723368163675,27.0,157.74,157.63,0.382239]
[1723368164087,27.0,157.72,157.63,0.382239]
[1723368165381,33.6647,157.76,157.65,27.0]
[1723368165565,6.6647,157.76,157.65,27.0]
[1723368165767,6.6647,157.76,157.66,1.26797009]
[1723368165971,6.6647,157.76,157.65,1.26797027]
[1723368166385,6.6647,157.76,157.66,0.25098]
[1723368166595,6.6647,157.76,157.68,0.12549]
[1723368166766,39.1247,157.8,157.68,0.25098]
[1723368166961,20.0,157.79,157.69,0.12549]
[1723368167304,39.1247,157.8,157.7,0.12549]
[1723368167473,6.6647,157.8,157.7,0.37647]
[1723368167678,6.6647,157.8,157.71,0.12549]
[1723368167883,6.6647,157.8,157.72,0.12549]
[1723368168067,6.6647,157.8,157.72,0.25098]
[1723368168391,32.46,157.83,157.73,1.26763771]
[1723368169101,32.46,157.83,157.72,0.25098]
[1723368169298,32.46,157.83,157.74,0.25098]
[1723368169997,6.6647,157.85,157.75,0.25098]
[1723368170195,6.6647,157.85,157.76,0.25098]
[1723368171583,6.6647,157.85,157.77,0.12549]
[1723368171781,54.1704,157.89,157.77,0.12549]
[1723368171990,248.49517566,157.92,157.77,1.39278276]
[1723368172180,248.49517566,157.92,157.79,0.12549]
[1723368172371,248.49517566,157.92,157.79,1.39248176]
[1723368172566,248.49517566,157.92,157.81,0.12549]
[1723368172764,248.49517566,157.92,157.81,1.39246246]
[1723368173387,248.49517566,157.92,157.82,0.12549]
[1723368173696,248.49517566,157.92,157.81,1.39235726]
[1723368173881,248.49517566,157.92,157.82,0.12549]
[1723368174283,248.49517566,157.92,157.83,0.12549]
[1723368174602,248.49517566,157.92,157.82,0.25098]
[1723368174895,248.49517566,157.92,157.82,0.12549]
[1723368175065,248.49517566,157.92,157.81,0.25098]
[1723368175597,0.97439657,157.91,157.81,0.25098]
[1723368175775,32.46,157.92,157.81,1.51792476]
[1723368176182,32.46,157.92,157.83,0.12549]
[1723368176385,32.46,157.92,157.83,0.25098]
[1723368176585,32.46,157.92,157.83,1.51778839]
[1723368177298,32.46,157.92,157.78,2.537788]
[1723368177504,32.46,157.92,157.79,0.37647]
[1723368177694,32.46,157.92,157.8,0.25098]
[1723368178009,32.46,157.92,157.82,0.12549]
[1723368178178,32.46,157.92,157.82,0.25098]
[1723368178780,32.46,157.92,157.82,1.5178883]
[1723368178996,32.46,157.92,157.82,46.5178883]
[1723368179388,32.46,157.92,157.83,0.12549]
[1723368179701,6.6647,157.94,157.84,0.12549]
[1723368179903,6.6647,157.94,157.84,0.25098]
[1723368180207,6.6647,157.94,157.84,1.51764183]
[1723368180378,6.6647,157.94,157.84,0.25098]
[1723368181008,6.6647,157.94,157.84,0.12549]
[1723368181192,32.46,157.92,157.78,2.537788]
[1723368181394,32.46,157.92,157.78,3.80473]
[1723368182373,32.46,157.89,157.79,45.0]
[1723368182574,32.46,157.86,157.71,1.26730436]
[1723368183187,48.3392,157.86,157.71,1.26730436]
[1723368183777,6.1421,157.85,157.71,1.26730436]
[1723368184207,32.46,157.83,157.69,32.46]
[1723368184411,32.46,157.83,157.68,9.55496705]
[1723368185013,32.46,157.83,157.69,1.26758981]
[1723368185500,32.46,157.83,157.69,1.26760063]
[1723368185706,27.04,157.81,157.69,28.30760063]
[1723368186080,27.04,157.79,157.67,27.04]
[1723368186589,27.04,157.77,157.66,1.2677064]
[1723368186989,27.04,157.75,157.65,27.04]
[1723368187322,27.04,157.75,157.65,1.26804574]
[1723368187812,27.04,157.77,157.65,28.30804574]
[1723368188182,27.04,157.77,157.66,0.25098]
[1723368188383,27.04,157.77,157.67,0.37647]
[1723368188681,27.04,157.77,157.68,0.25098]
[1723368188893,27.04,157.77,157.69,0.37647]
[1723368189806,27.04,157.79,157.71,0.12549]
[1723368190391,27.04,157.81,157.71,1.51878303]
[1723368190585,27.04,157.81,157.73,0.12549]
[1723368190917,27.04,157.81,157.73,1.51849644]
[1723368191086,27.04,157.81,157.74,0.12549]
[1723368191287,27.04,157.83,157.75,0.12549]
[1723368191595,33.1821,157.85,157.75,20.37647]
[1723368191796,33.1821,157.85,157.76,45.0]
[1723368191993,33.1821,157.85,157.77,0.12549]
[1723368192183,33.1821,157.85,157.77,0.50196]
[1723368192387,33.1821,157.85,157.77,0.12549]
[1723368193287,33.1821,157.85,157.76,45.0]
[1723368193509,33.1821,157.85,157.77,0.12549]
[1723368194892,27.04,157.87,157.77,1.39286174]
[1723368195095,27.04,157.87,157.79,0.12549]
[1723368195299,27.04,157.87,157.79,1.39257778]
[1723368195492,27.04,157.87,157.8,0.12549]
[1723368195687,27.04,157.87,157.8,46.39257845]
[1723368196093,33.1821,157.89,157.8,46.39257845]
[1723368196423,33.1821,157.89,157.8,45.12549]
[1723368196587,33.1821,157.89,157.8,46.39257067]
[1723368198616,33.1821,157.89,157.81,0.12549]
[1723368198820,27.04,157.89,157.81,21.64338873]
[1723368199207,42.9192,157.91,157.82,45.12549]
[1723368199398,33.1821,157.93,157.83,1.51788025]
[1723368199599,33.1821,157.93,157.84,0.12549]
[1723368199792,27.04,157.93,157.85,0.12549]
[1723368199993,27.04,157.93,157.85,20.37647]
[1723368200293,27.04,157.93,157.87,0.12549]
[1723368201351,33.62781212,157.95,157.87,0.12549]
[1723368201618,6.1421,157.98,157.87,48.68304216]
[1723368201831,27.04,157.97,157.89,0.12549]
[1723368201994,27.04,157.97,157.87,21.64304216]
[1723368201995,27.04,157.95,157.87,20.12549]
[1723368202505,27.04,157.97,157.89,0.12549]
[1723368202710,27.04,157.97,157.89,1.76826631]
[1723368203098,27.04,157.97,157.89,20.50196]
[1723368203312,27.04,157.95,157.88,45.0]
[1723368203624,27.04,157.95,157.89,1.26646952]
[1723368203920,27.04,157.95,157.86,21.39192651]
[1723368204113,27.04,157.93,157.86,20.0]
[1723368204317,27.04,157.95,157.87,45.0]
[1723368204523,6.1421,157.98,157.88,1.26654085]
[1723368204730,33.1821,157.98,157.89,0.25098]
[1723368205022,33.1821,157.98,157.89,45.12549]
[1723368205234,27.04,157.96,157.89,45.0]
[1723368205422,27.04,157.96,157.9,1.26637387]
[1723368205624,33.1821,157.98,157.9,1.26637387]
[1723368205936,27.04,158.0,157.91,0.37647]
[1723368206227,27.04,158.0,157.92,1.39156906]
[1723368206399,27.04,158.0,157.93,1.26609321]
[1723368206929,27.04,158.0,157.93,46.26609321]
[1723368207103,27.04,158.0,157.93,1.26609321]
[1723368207430,27.04,158.0,157.92,20.12549]
[1723368207431,27.04,158.0,157.92,0.12549]
[1723368207612,27.04,158.0,157.91,0.12549]
[1723368207929,27.04,157.98,157.89,0.12549]
[1723368208129,27.04,157.98,157.89,45.50196]
[1723368208331,27.04,157.98,157.9,20.0]
[1723368208503,15.1689,158.01,157.9,20.0]
[1723368208706,27.04,157.99,157.9,20.0]
[1723368209009,27.04,157.99,157.9,21.26626538]
[1723368210424,27.04,157.99,157.91,0.12549]
[1723368210643,27.04,157.99,157.91,46.76813723]
[1723368210812,42.2089,158.01,157.91,46.76813723]
[1723368211018,42.2089,158.01,157.92,20.0]
[1723368211334,42.2089,158.01,157.93,46.5170439]
[1723368211627,42.2089,158.01,157.93,45.25098]
[1723368212119,42.2089,158.01,157.92,20.0]
[1723368212312,27.04,157.99,157.91,0.12549]
[1723368212720,27.04,157.97,157.91,20.0]
[1723368213237,27.04,157.99,157.87,20.0]
[1723368213550,27.04,157.99,157.88,1.26625981]
[1723368214022,27.04,157.99,157.87,20.0]
[1723368214225,27.04,157.99,157.88,45.50196]
[1723368214618,27.04,157.97,157.88,45.25098]
[1723368214824,0.97439657,157.96,157.88,0.25098]
[1723368215024,0.97439657,157.96,157.88,0.12549]
[1723368215247,27.04,157.97,157.88,0.12549]
[1723368216026,27.04,157.93,157.82,27.04]
[1723368216416,27.04,157.93,157.83,1.26666552]
[1723368216618,27.04,157.95,157.84,27.04]
[1723368216820,27.04,157.95,157.85,1.26650934]
[1723368217044,27.04,157.97,157.86,1.26650305]
[1723368217209,27.04,157.97,157.86,28.30650305]
[1723368217409,27.04,157.97,157.87,45.50196]
[1723368217639,216.03517566,158.0,157.89,0.12549]
[1723368217842,27.04,157.98,157.89,0.12549]
[1723368218016,27.04,157.98,157.87,45.25098]
[1723368218217,27.04,157.98,157.88,20.0]
[1723368218540,27.04,157.97,157.89,0.12549]
[1723368218716,27.04,157.97,157.89,45.37647]
[1723368219044,27.04,157.98,157.89,45.37647]
[1723368219542,15.1689,158.01,157.91,0.12549]
[1723368219543,27.04,158.0,157.91,0.12549]
[1723368220040,15.1689,158.01,157.91,45.37647]
[1723368220258,15.1689,158.01,157.93,0.12549]
[1723368220444,15.1689,158.01,157.93,1.26607409]
[1723368220647,27.04,158.0,157.92,20.0]
[1723368220858,27.04,158.0,157.9,0.12549]
[1723368221154,27.04,158.0,157.9,45.50196]
[1723368221354,27.04,158.0,157.91,20.0]
[1723368221526,27.04,158.0,157.92,1.266242]
[1723368221727,27.04,158.0,157.93,0.12549]
[1723368222160,15.1689,158.01,157.93,0.12549]
[1723368222365,15.1689,158.01,157.93,20.12549]
[1723368222734,15.1689,158.01,157.94,1.26605394]
[1723368223264,15.1689,158.01,157.94,46.26605394]
[1723368223561,27.501535,158.02,157.95,0.12549]
[1723368224067,27.501535,158.02,157.93,20.25098]
[1723368224255,27.501535,158.02,157.95,1.2659436]
[1723368224554,27.501535,158.02,157.96,1.26603128]
[1723368224756,27.501535,158.02,157.95,0.12549]
[1723368225536,27.501535,158.02,157.91,20.0]
[1723368225745,27.501535,158.02,157.93,0.12549]
[1723368225949,27.501535,158.02,157.93,20.0]
[1723368226155,27.04,158.0,157.91,20.0]
[1723368226639,27.04,158.0,157.89,20.0]
[1723368227535,27.04,158.0,157.9,45.12549]
[1723368227736,27.04,158.0,157.91,21.39163946]
[1723368227935,27.04,158.0,157.91,20.0]
[1723368229166,27.04,158.0,157.91,21.26617682]
[1723368229336,27.04,158.0,157.92,45.25098]
[1723368229735,27.04,158.0,157.92,0.12549]
[1723368230049,27.04,158.0,157.92,0.25098]
[1723368231151,27.501535,158.02,157.92,0.12549]
[1723368231354,27.501535,158.02,157.93,0.12549]
[1723368231538,27.501535,158.02,157.91,65.50196]
[1723368232436,0.461535,158.02,157.92,28.3058438]
[1723368232642,27.501535,158.02,157.93,65.50196]
[1723368232838,27.501535,158.02,157.93,20.0]
[1723368233262,27.501535,158.02,157.91,20.0]
[1723368233464,27.501535,158.02,157.92,45.12549]
[1723368233661,27.501535,158.02,157.92,72.16549]
[1723368233842,27.501535,158.02,157.93,20.0]
[1723368234161,0.461535,158.02,157.94,45.12549]
[1723368234459,0.461535,158.02,157.95,1.26585307]
[1723368234881,0.461535,158.02,157.96,0.12549]
[1723368235365,0.461535,158.02,157.96,0.25098]
[1723368235570,0.461535,158.02,157.96,45.25098]
[1723368235744,0.461535,158.02,157.97,0.12549]
[1723368235944,0.461535,158.02,157.96,45.25098]
[1723368236171,0.461535,158.02,157.96,0.25098]
[1723368236350,0.461535,158.02,157.96,0.12549]
[1723368237763,0.461535,158.02,157.96,45.50196]
[1723368238071,0.461535,158.02,157.98,0.12549]
[1723368238365,0.461535,158.02,157.97,20.0]
[1723368238674,0.461535,158.02,157.95,20.0]
[1723368238963,0.461535,158.02,157.95,0.12549]
[1723368239154,0.461535,158.02,157.95,0.25098]
[1723368239354,0.461535,158.02,157.95,20.25098]
[1723368239949,0.461535,158.02,157.95,20.0]
[1723368240351,0.461535,158.02,157.96,1.26590888]
[1723368240547,0.461535,158.02,157.94,20.12549]
[1723368242248,0.461535,158.02,157.95,0.12549]
[1723368242550,0.461535,158.02,157.95,22.96141148]
[1723368242850,0.461535,158.02,157.97,0.12549]
[1723368243158,0.461535,158.02,157.97,0.25098]
[1723368243358,0.461535,158.02,157.97,0.12549]
[1723368244464,0.461535,158.02,157.97,1.51667209]
[1723368244666,0.461535,158.02,157.98,0.12549]
[1723368244971,0.461535,158.02,157.99,21.69549]
[1723368245283,22.4434,158.15,158.01,21.69549]
[1723368245483,6.59634141,158.12,158.09,0.12549]
[1723368245693,22.4434,158.15,158.09,0.12549]
[1723368245694,22.413774,158.18,158.09,20.50196]
[1723368245855,0.843774,158.18,158.1,21.57]
[1723368246054,22.413774,158.18,158.09,20.37647]
[1723368246364,22.413774,158.18,158.1,0.12549]
[1723368246574,22.413774,158.18,158.1,0.25098]
[1723368246775,22.413774,158.18,158.11,0.12549]
[1723368247152,22.413774,158.18,158.1,0.25098]
[1723368247372,0.843774,158.18,158.11,0.12549]
[1723368247574,0.843774,158.18,158.11,0.25098]
[1723368247781,0.843774,158.18,158.12,0.25098]
[1723368247960,0.843774,158.18,158.12,0.12549]
[1723368248164,0.843774,158.18,158.1,20.0]
[1723368248368,0.843774,158.18,158.12,0.12549]
[1723368249179,0.843774,158.18,158.12,0.25098]
[1723368249365,0.843774,158.18,158.14,0.12549]
[1723368249571,0.843774,158.18,158.13,0.25098]
[1723368249877,0.843774,158.18,158.09,20.0]
[1723368250180,26.91,158.16,158.04,26.91]
[1723368250382,26.91,158.16,158.05,20.0]
[1723368250562,26.91,158.16,158.06,1.26482531]
[1723368250764,27.753774,158.18,158.06,28.17482531]
[1723368251063,27.753774,158.18,158.08,26.91]
[1723368251270,27.753774,158.18,158.09,20.0]
[1723368251479,27.753774,158.18,158.1,45.50196]
[1723368253279,0.843774,158.18,158.1,45.50196]
[1723368254077,0.843774,158.18,158.12,0.12549]
[1723368254287,0.843774,158.18,158.12,45.50196]
[1723368254472,0.843774,158.18,158.14,0.12549]
[1723368254669,0.843774,158.18,158.14,45.50196]
[1723368255091,0.843774,158.18,158.16,0.12549]
[1723368255382,0.843774,158.18,158.16,0.50196]
[1723368255592,0.843774,158.18,158.16,0.25098]
[1723368255756,0.843774,158.18,158.15,20.0]
[1723368256261,0.843774,158.18,158.16,45.25098]
[1723368256696,0.843774,158.18,158.17,1.38971515]
[1723368256857,0.843774,158.18,158.17,0.12549]
[1723368257289,0.843774,158.18,158.15,20.0]
[1723368257472,0.843774,158.18,158.14,0.37647]
[1723368257656,0.843774,158.18,158.15,0.37647]
[1723368258372,0.843774,158.18,158.15,0.12549]
[1723368258681,0.843774,158.18,158.16,0.12549]
[1723368258986,0.843774,158.18,158.17,0.12549]
[1723368259371,0.843774,158.18,158.17,0.25098]
[1723368259587,0.843774,158.18,158.17,0.50196]
[1723368261480,0.843774,158.18,158.17,66.76587033]
[1723368263978,0.843774,158.18,158.17,65.50196]
[1723368264192,0.843774,158.18,158.13,9.55496705]
[1723368264364,0.843774,158.18,158.08,26.91]
[1723368264565,23.705574,158.18,158.09,1.26433971]
[1723368264782,23.705574,158.18,158.08,28.17433971]
[1723368265291,26.91,158.17,158.06,26.91]
[1723368265465,0.7515,158.15,158.06,26.91]
[1723368265669,27.6615,158.15,158.04,26.91]
[1723368265868,27.6615,158.15,158.05,9.1981124]
[1723368266281,0.7515,158.15,158.05,9.1981124]
[1723368266478,0.7515,158.15,158.08,26.91]
[1723368266676,0.7515,158.15,158.09,1.26443807]
[1723368267368,0.7515,158.15,158.09,21.26443807]
[1723368267789,0.7515,158.15,158.1,45.37647]
[1723368267986,0.7515,158.15,158.11,20.0]
[1723368268175,0.7515,158.15,158.11,1.26465039]
[1723368268975,0.7515,158.15,158.12,1.26461037]
[1723368269289,0.7515,158.15,158.13,0.12549]
[1723368269869,0.7515,158.15,158.12,45.50196]
[1723368270591,0.7515,158.15,158.06,28.17447669]
[1723368270897,0.7515,158.15,158.07,20.0]
[1723368272194,0.7515,158.15,158.07,21.2647477]
[1723368272380,0.7515,158.15,158.09,0.12549]
[1723368272581,0.7515,158.15,158.09,0.25098]
[1723368272782,0.7515,158.15,158.09,20.25098]
[1723368272989,0.7515,158.15,158.1,22.79446092]
[1723368273189,0.7515,158.15,158.11,20.25098]
[1723368273387,0.7515,158.15,158.13,0.12549]
[1723368273585,0.7515,158.15,158.13,66.51529688]
[1723368273781,0.7515,158.15,158.14,0.37647]
[1723368273984,0.7515,158.15,158.14,0.50196]
[1723368274880,0.7515,158.15,158.14,1.64078574]
[1723368275179,0.7515,158.15,158.14,1.51529574]
[1723368275604,0.7515,158.15,158.14,1.64078574]
[1723368275791,0.7515,158.15,158.14,1.51529574]
[1723368275985,0.7515,158.15,158.14,0.25098]
[1723368278692,0.7515,158.15,158.13,65.0]
[1723368278891,0.7515,158.15,158.1,21.53]
[1723368279203,0.7515,158.15,158.11,45.0]
[1723368279885,0.7515,158.15,158.02,22.53974651]
[1723368279886,0.7515,158.15,158.06,22.79453657]
[1723368280094,16.9681,158.15,158.06,21.53]
[1723368280298,38.4981,158.15,158.07,20.0]
[1723368280708,6.6452,158.14,158.07,20.0]
[1723368281003,6.6452,158.14,158.06,20.0]
[1723368281302,21.53,158.13,158.02,32.51888788]
[1723368281505,21.53,158.13,158.02,24.06974651]
[1723368281803,21.53,158.11,158.02,21.53]
[1723368282902,21.53,158.13,158.0,1.26503046]
[1723368283105,21.53,158.11,158.01,1.26523814]
[1723368283495,21.53,158.09,158.0,21.53]
[1723368283804,21.53,158.09,157.98,21.53]
[1723368285319,21.53,158.05,157.96,1.26544227]
[1723368285605,21.53,158.07,157.96,21.53]
[1723368285807,21.53,158.07,157.96,22.79557963]
[1723368286317,21.53,158.07,157.96,1.26557963]
[1723368286609,21.53,158.03,157.94,21.53]
[1723368286805,21.53,158.03,157.95,1.26589363]
[1723368287510,21.53,158.03,157.94,21.53]
[1723368287685,21.53,158.03,157.91,17.20695434]
[1723368287892,21.53,158.01,157.92,21.53]
[1723368288581,21.53,158.03,157.92,21.53]
[1723368288986,21.6171,158.04,157.9,21.53]
[1723368288987,21.53,158.01,157.9,21.53]
[1723368289405,21.53,157.99,157.9,21.53]
[1723368290301,21.6171,157.98,157.88,21.53]
[1723368290605,21.6171,157.98,157.9,21.53]
[1723368291016,21.6171,157.98,157.91,20.0]
[1723368291216,21.53,157.97,157.84,19.11396821]
[1723368291447,21.53,157.97,157.86,21.53]
[1723368291601,21.53,157.95,157.86,21.53]
[1723368291913,21.53,157.93,157.83,9.92129069]
[1723368292093,21.53,157.93,157.82,21.53]
[1723368292295,21.53,157.88,157.81,9.9241294]
[1723368292604,6.1249,157.91,157.72,21.10290859]
[1723368292605,21.53,157.9,157.8,21.53]
[1723368292981,21.53,157.88,157.78,21.53]
[1723368293403,21.53,157.88,157.76,1.26689566]
[1723368293594,21.53,157.86,157.77,1.26718594]
[1723368293800,27.01,157.87,157.75,27.01]
[1723368294001,7.09929657,157.91,157.72,9.92869894]
[1723368294002,21.6171,157.84,157.72,9.92869894]
[1723368294312,21.6171,157.84,157.72,27.01]
[1723368294501,21.6171,157.84,157.73,1.26744538]
[1723368294812,21.6171,157.84,157.76,27.01]
[1723368295318,21.6171,157.84,157.74,27.01]
[1723368295516,21.6171,157.84,157.74,28.27730744]
[1723368295993,21.6171,157.84,157.75,0.12549]
[1723368296411,21.6171,157.84,157.75,1.39277409]
[1723368296616,21.6171,157.84,157.77,0.12549]
[1723368296917,6.1249,157.88,157.81,0.12549]
[1723368297089,6.1249,157.88,157.81,65.50196]
[1723368298101,27.01,157.87,157.76,27.01]
[1723368298426,27.01,157.85,157.74,27.01]
[1723368298950,27.01,157.87,157.74,28.27732265]
[1723368299294,27.01,157.85,157.74,27.01]
[1723368299522,27.01,157.85,157.71,1.26727538]
[1723368299523,27.01,157.83,157.72,27.01]
[1723368300608,7.09929657,157.88,157.71,1.26764589]
[1723368300609,27.01,157.81,157.71,1.26764589]
[1723368300809,27.01,157.81,157.7,28.27750326]
[1723368301126,27.01,157.81,157.71,1.26754058]
[1723368301297,27.01,157.81,157.7,28.27746068]
[1723368301491,27.01,157.81,157.7,27.01]
[1723368301702,27.01,157.81,157.71,20.0]
[1723368302698,21.6171,157.82,157.72,27.38647]
[1723368302903,21.6171,157.82,157.74,0.12549]
[1723368303213,21.6171,157.82,157.74,0.37647]
[1723368303597,21.6171,157.82,157.75,0.12549]
[1723368303804,21.6171,157.82,157.76,0.12549]
[1723368304002,21.6171,157.82,157.76,45.25098]
[1723368304626,21.6171,157.82,157.76,72.26098]
[1723368304836,21.6171,157.82,157.78,0.12549]
[1723368305206,21.6171,157.82,157.78,45.12549]
[1723368305431,21.6171,157.82,157.57,31.20163359]
[1723368305432,48.6271,157.82,157.65,20.0]
[1723368305638,48.6271,157.82,157.71,27.01]
[1723368305807,48.6271,157.82,157.71,28.27746339]
[1723368306013,27.01,157.8,157.67,27.01]
[1723368306335,27.01,157.8,157.69,27.01]
[1723368306910,0.97439657,157.79,157.69,27.01]
[1723368307216,27.01,157.8,157.7,20.0]
[1723368307420,27.01,157.8,157.71,0.12549]
[1723368307628,48.6271,157.82,157.71,27.13549]
[1723368307835,48.6271,157.82,157.72,20.0]
[1723368308036,48.6271,157.82,157.73,0.12549]
[1723368308201,48.6271,157.82,157.74,0.12549]
[1723368308405,48.6271,157.82,157.74,0.25098]
[1723368308611,48.6271,157.82,157.75,0.25098]
[1723368309033,27.01,157.8,157.73,45.0]
[1723368309331,0.97439657,157.79,157.72,20.0]
[1723368309533,0.97439657,157.79,157.7,20.0]
[1723368309707,27.01,157.78,157.68,20.0]
[1723368309905,21.6171,157.82,157.65,27.01]
[1723368309906,27.01,157.76,157.65,27.01]
[1723368310220,16.641,157.75,157.66,1.2680148]
[1723368310742,16.641,157.75,157.65,28.27788883]
[1723368310913,16.641,157.75,157.64,9.93244334]
[1723368310914,6.3191,157.74,157.64,9.93244334]
[1723368311112,33.3291,157.74,157.63,27.853774]
[1723368311335,27.01,157.72,157.63,0.843774]
[1723368311946,6.3191,157.74,157.63,0.843774]
[1723368311947,27.01,157.66,157.63,0.843774]
[1723368312709,27.01,157.68,157.63,0.843774]
[1723368313109,16.641,157.73,157.63,0.843774]
[1723368313110,16.641,157.65,157.63,0.843774]
[1723368313310,27.01,157.64,157.63,0.843774]
[1723368313728,27.01,157.64,157.52,27.01]
[1723368313958,27.01,157.62,157.5,36.95138228]
[1723368314250,16.641,157.65,157.52,27.01]
[1723368314533,16.641,157.65,157.54,27.01]
[1723368315054,27.01,157.61,157.5,9.94138228]
[1723368315219,27.01,157.61,157.5,36.95138228]
[1723368315540,27.01,157.61,157.5,46.89276528]
[1723368315737,27.01,157.61,157.5,27.01]
[1723368315941,27.01,157.61,157.48,27.01]
[1723368316307,27.01,157.61,157.47,10.78791381]
[1723368316308,16.641,157.65,157.5,27.01]
[1723368316514,27.01,157.64,157.52,27.01]
[1723368316744,27.01,157.64,157.53,1.26904471]
[1723368317240,16.641,157.65,157.56,27.01]
[1723368317443,16.641,157.65,157.58,0.12549]
[1723368317746,16.641,157.65,157.58,45.37647]
[1723368317941,16.641,157.65,157.6,0.12549]
[1723368318148,16.641,157.65,157.6,45.37647]
[1723368318333,16.641,157.65,157.61,0.12549]
[1723368318638,16.641,157.65,157.61,0.37647]
[1723368319724,16.641,157.65,157.62,0.12549]
[1723368319926,16.641,157.65,157.62,45.25098]
[1723368320446,22.9601,157.71,157.63,1.39410309]
[1723368320639,22.9601,157.71,157.64,1.6447609]
[1723368320826,22.9601,157.71,157.64,45.37647]
[1723368321022,22.9601,157.71,157.65,20.0]
[1723368321228,22.9601,157.71,157.64,0.25098]
[1723368322537,22.9601,157.71,157.65,0.12549]
[1723368322752,27.01,157.7,157.62,0.12549]
[1723368322957,27.01,157.7,157.59,20.0]
[1723368323155,22.9601,157.71,157.6,28.27858946]
[1723368323443,22.9601,157.71,157.61,20.0]
[1723368323642,22.9601,157.71,157.64,27.01]
[1723368323829,22.9601,157.71,157.65,21.26821115]
[1723368324235,22.9601,157.71,157.66,45.50196]
[1723368325451,22.6208,157.76,157.68,0.12549]
[1723368325621,22.6208,157.76,157.68,28.77994086]
[1723368325825,22.6208,157.76,157.7,0.12549]
[1723368326020,22.6208,157.76,157.7,1.76989975]
[1723368326224,16.5279,157.76,157.72,27.13549]
[1723368326438,22.6208,157.81,157.74,0.12549]
[1723368327621,22.6208,157.81,157.74,1.39318322]
[1723368327827,22.6208,157.81,157.76,0.12549]
[1723368328234,22.6208,157.81,157.75,0.25098]
[1723368328638,0.97439657,157.8,157.73,20.0]
[1723368328990,22.6208,157.81,157.7,27.01]
[1723368329253,22.6208,157.81,157.72,27.01]
[1723368329440,22.6208,157.81,157.73,20.0]
[1723368330035,22.6208,157.81,157.74,45.50196]